[Event "Rapid Tournament (RAP)"]
[Site "Biel, Switzerland"]
[Date "2026.07.12"]
[Round "1.8"]
[White "Moesching, Colin"]
[Black "Ghosh, Diptayan"]
[Result "0-1"]
[TimeControl "15 + 5"]
[WhiteTitle "-"]
[BlackTitle "-"]
[WhiteFideId "1345036"]
[BlackFideId "5045207"]
[WhiteElo "1820"]
[BlackElo "2480"]

1. d4 {[%clk 00:15:07]} {[%emt 00:00:02]} Nf6 {[%clk 00:15:05]} {[%emt
00:00:06]} 2. Nf3 {[%clk 00:15:10]} {[%emt 00:00:01]} d5 {[%clk 00:15:08]}
{[%emt 00:00:02]} 3. g3 {[%clk 00:15:13]} {[%emt 00:00:03]} c5 {[%clk
00:15:09]} {[%emt 00:00:03]} 4. Bg2 {[%clk 00:15:10]} {[%emt 00:00:07]} cxd4
{[%clk 00:15:12]} {[%emt 00:00:03]} 5. O-O {[%clk 00:15:08]} {[%emt 00:00:06]}
h6 {[%clk 00:15:14]} {[%emt 00:00:03]} 6. h3 {[%clk 00:14:50]} {[%emt
00:00:24]} e6 {[%clk 00:14:45]} {[%emt 00:00:34]} 7. Bf4 {[%clk 00:14:34]}
{[%emt 00:00:21]} Be7 {[%clk 00:14:20]} {[%emt 00:00:31]} 8. Nxd4 {[%clk
00:14:16]} {[%emt 00:00:22]} O-O {[%clk 00:14:21]} {[%emt 00:00:03]} 9. c4
{[%clk 00:13:58]} {[%emt 00:00:23]} Nbd7 {[%clk 00:13:34]} {[%emt 00:00:52]} 10.
Nf3 {[%clk 00:13:07]} {[%emt 00:00:57]} dxc4 {[%clk 00:13:20]} {[%emt
00:00:19]} 11. Qc2 {[%clk 00:12:43]} {[%emt 00:00:30]} Nd5 {[%clk 00:13:17]}
{[%emt 00:00:07]} 12. Bd2 {[%clk 00:12:24]} {[%emt 00:00:24]} b5 {[%clk
00:12:42]} {[%emt 00:00:40]} 13. a4 {[%clk 00:11:37]} {[%emt 00:00:52]} b4
{[%clk 00:12:32]} {[%emt 00:00:16]} 14. e4 {[%clk 00:10:49]} {[%emt 00:00:52]}
N5f6 {[%clk 00:12:09]} {[%emt 00:00:28]} 15. Qxc4 {[%clk 00:10:19]} {[%emt
00:00:35]} Nc5 {[%clk 00:10:42]} {[%emt 00:01:31]} 16. Qd4 {[%clk 00:08:13]}
{[%emt 00:02:12]} Ba6 {[%clk 00:10:15]} {[%emt 00:00:32]} 17. Bxb4 {[%clk
00:06:03]} {[%emt 00:02:15]} Bxf1 {[%clk 00:10:02]} {[%emt 00:00:18]} 18. Kxf1
{[%clk 00:05:19]} {[%emt 00:00:49]} Qb6 {[%clk 00:09:18]} {[%emt 00:00:49]} 19.
Qc4 {[%clk 00:03:30]} {[%emt 00:01:54]} Ncxe4 {[%clk 00:08:36]} {[%emt
00:00:47]} 20. Be1 {[%clk 00:03:18]} {[%emt 00:00:16]} Qxb2 {[%clk 00:07:57]}
{[%emt 00:00:45]} 21. Qd4 {[%clk 00:03:21]} {[%emt 00:00:02]} Qxd4 {[%clk
00:07:30]} {[%emt 00:00:32]} 22. Nxd4 {[%clk 00:03:25]} {[%emt 00:00:01]} Rac8
{[%clk 00:07:28]} {[%emt 00:00:07]} 23. Na3 {[%clk 00:02:54]} {[%emt 00:00:35]}
a6 {[%clk 00:07:07]} {[%emt 00:00:27]} 24. Nac2 {[%clk 00:02:39]} {[%emt
00:00:21]} Rfd8 {[%clk 00:07:08]} {[%emt 00:00:03]} 25. f3 {[%clk 00:02:17]}
{[%emt 00:00:26]} Nc5 {[%clk 00:06:56]} {[%emt 00:00:18]} 26. Ne2 {[%clk
00:02:00]} {[%emt 00:00:21]} Nd5 {[%clk 00:06:51]} {[%emt 00:00:11]} 27. Bf2
{[%clk 00:01:57]} {[%emt 00:00:09]} Nd3 {[%clk 00:06:47]} {[%emt 00:00:08]} 28.
Ncd4 {[%clk 00:01:39]} {[%emt 00:00:23]} Nxf2 {[%clk 00:06:48]} {[%emt
00:00:04]} 29. Kxf2 {[%clk 00:01:43]} {[%emt 00:00:01]} Bc5 {[%clk 00:06:50]}
{[%emt 00:00:03]} 30. f4 {[%clk 00:01:13]} {[%emt 00:00:35]} Nb4 {[%clk
00:06:47]} {[%emt 00:00:08]} 0-1

[Event "Rapid Tournament (RAP)"]
[Site "Biel, Switzerland"]
[Date "2026.07.12"]
[Round "1.9"]
[White "Acs, Peter"]
[Black "Schaller, Didier"]
[Result "1-0"]
[TimeControl "15 + 5"]
[WhiteTitle "-"]
[BlackTitle "-"]
[WhiteFideId "708020"]
[BlackFideId "1314351"]
[WhiteElo "2474"]
[BlackElo "1816"]

1. e4 {[%clk 00:15:04]} {[%emt 00:00:04]} c6 {[%clk 00:15:07]} {[%emt
00:00:04]} 2. d4 {[%clk 00:15:05]} {[%emt 00:00:05]} d5 {[%clk 00:15:09]}
{[%emt 00:00:03]} 3. e5 {[%clk 00:15:04]} {[%emt 00:00:06]} Bf5 {[%clk
00:15:07]} {[%emt 00:00:07]} 4. h4 {[%clk 00:14:56]} {[%emt 00:00:13]} h6
{[%clk 00:14:57]} {[%emt 00:00:16]} 5. Bd3 {[%clk 00:14:27]} {[%emt 00:00:34]}
Bxd3 {[%clk 00:14:33]} {[%emt 00:00:28]} 6. Qxd3 {[%clk 00:14:23]} {[%emt
00:00:09]} e6 {[%clk 00:14:35]} {[%emt 00:00:03]} 7. h5 {[%clk 00:14:24]}
{[%emt 00:00:04]} Qa5+ {[%clk 00:14:28]} {[%emt 00:00:13]} 8. c3 {[%clk
00:13:46]} {[%emt 00:00:43]} Qa6 {[%clk 00:14:16]} {[%emt 00:00:16]} 9. Qf3
{[%clk 00:13:30]} {[%emt 00:00:21]} Nd7 {[%clk 00:13:27]} {[%emt 00:00:55]} 10.
Ne2 {[%clk 00:13:12]} {[%emt 00:00:23]} c5 {[%clk 00:13:15]} {[%emt 00:00:17]}
11. O-O {[%clk 00:12:36]} {[%emt 00:00:41]} Ne7 {[%clk 00:12:29]} {[%emt
00:00:50]} 12. Bf4 {[%clk 00:09:44]} {[%emt 00:02:57]} Nc6 {[%clk 00:08:56]}
{[%emt 00:03:38]} 13. Nd2 {[%clk 00:09:36]} {[%emt 00:00:13]} Be7 {[%clk
00:08:53]} {[%emt 00:00:08]} 14. Qg4 {[%clk 00:08:18]} {[%emt 00:01:23]} Kf8
{[%clk 00:05:08]} {[%emt 00:03:50]} 15. a3 {[%clk 00:07:20]} {[%emt 00:01:04]}
Qd3 {[%clk 00:03:44]} {[%emt 00:01:29]} 16. Be3 {[%clk 00:06:20]} {[%emt
00:01:04]} Qf5 {[%clk 00:01:40]} {[%emt 00:02:10]} 17. Qxf5 {[%clk 00:05:16]}
{[%emt 00:01:09]} exf5 {[%clk 00:01:44]} 18. b4 {[%clk 00:04:41]} {[%emt
00:00:40]} cxd4 {[%clk 00:01:15]} {[%emt 00:00:33]} 19. cxd4 {[%clk 00:04:44]}
{[%emt 00:00:02]} a6 {[%clk 00:00:51]} {[%emt 00:00:30]} 20. Nb3 {[%clk
00:04:08]} {[%emt 00:00:41]} g6 {[%clk 00:00:35]} {[%emt 00:00:20]} 21. hxg6
{[%clk 00:04:06]} {[%emt 00:00:07]} fxg6 {[%clk 00:00:39]} {[%emt 00:00:01]} 22.
Nf4 {[%clk 00:04:08]} {[%emt 00:00:04]} Kg7 {[%clk 00:00:15]} {[%emt 00:00:28]}
23. Nxd5 {[%clk 00:04:05]} {[%emt 00:00:08]} Bg5 {[%clk 00:00:00]} {[%emt
00:00:14]} 24. f4 {[%clk 00:04:05]} {[%emt 00:00:06]} 1-0

[Event "Rapid Tournament (RAP)"]
[Site "Biel, Switzerland"]
[Date "2026.07.12"]
[Round "1.10"]
[White "Klopfenstein, Francois"]
[Black "Gopal, G.N."]
[Result "0-1"]
[TimeControl "15 + 5"]
[WhiteTitle "-"]
[BlackTitle "-"]
[WhiteFideId "1303040"]
[BlackFideId "5015693"]
[WhiteElo "1815"]
[BlackElo "2471"]

1. e4 {[%clk 00:15:08]} {[%emt 00:00:02]} c5 {[%clk 00:15:08]} {[%emt
00:00:03]} 2. Nc3 {[%clk 00:15:10]} {[%emt 00:00:02]} d6 {[%clk 00:15:12]}
{[%emt 00:00:01]} 3. f4 {[%clk 00:15:10]} {[%emt 00:00:05]} g6 {[%clk
00:15:16]} {[%emt 00:00:02]} 4. Nf3 {[%clk 00:15:12]} {[%emt 00:00:02]} Bg7
{[%clk 00:15:20]} 5. a3 {[%clk 00:15:07]} {[%emt 00:00:11]} Nc6 {[%clk
00:15:16]} {[%emt 00:00:08]} 6. Bc4 {[%clk 00:14:42]} {[%emt 00:00:29]} e6
{[%clk 00:14:37]} {[%emt 00:00:44]} 7. Ba2 {[%clk 00:12:33]} {[%emt 00:02:15]}
Nge7 {[%clk 00:14:41]} {[%emt 00:00:02]} 8. O-O {[%clk 00:12:21]} {[%emt
00:00:16]} O-O {[%clk 00:14:43]} {[%emt 00:00:03]} 9. d3 {[%clk 00:12:14]}
{[%emt 00:00:12]} d5 {[%clk 00:12:23]} {[%emt 00:02:25]} 10. Ne2 {[%clk
00:10:03]} {[%emt 00:02:16]} b6 {[%clk 00:11:24]} {[%emt 00:01:04]} 11. Ng3
{[%clk 00:10:00]} {[%emt 00:00:07]} dxe4 {[%clk 00:08:41]} {[%emt 00:02:49]} 12.
dxe4 {[%clk 00:09:57]} {[%emt 00:00:07]} Ba6 {[%clk 00:08:45]} {[%emt
00:00:02]} 13. Re1 {[%clk 00:09:21]} {[%emt 00:00:41]} Qc7 {[%clk 00:08:21]}
{[%emt 00:00:29]} 14. c3 {[%clk 00:09:20]} {[%emt 00:00:06]} Rad8 {[%clk
00:07:52]} {[%emt 00:00:34]} 15. Qa4 {[%clk 00:08:24]} {[%emt 00:01:01]} Bd3
{[%clk 00:07:40]} {[%emt 00:00:17]} 16. Bc4 {[%clk 00:08:05]} {[%emt 00:00:24]}
Na5 {[%clk 00:06:31]} {[%emt 00:01:14]} 17. Bxd3 {[%clk 00:07:53]} {[%emt
00:00:16]} Rxd3 {[%clk 00:06:36]} 18. Be3 {[%clk 00:07:39]} {[%emt 00:00:20]}
Rfd8 {[%clk 00:06:27]} {[%emt 00:00:14]} 19. Rad1 {[%clk 00:07:39]} {[%emt
00:00:05]} b5 {[%clk 00:04:10]} {[%emt 00:02:22]} 20. Qc2 {[%clk 00:07:14]}
{[%emt 00:00:30]} Rxd1 {[%clk 00:04:14]} {[%emt 00:00:01]} 21. Rxd1 {[%clk
00:07:16]} {[%emt 00:00:03]} Rxd1+ {[%clk 00:04:18]} {[%emt 00:00:02]} 22. Qxd1
{[%clk 00:07:19]} {[%emt 00:00:01]} Nc4 {[%clk 00:04:22]} {[%emt 00:00:01]} 23.
Bc1 {[%clk 00:07:07]} {[%emt 00:00:17]} a5 {[%clk 00:04:26]} {[%emt 00:00:01]}
24. Qd3 {[%clk 00:05:36]} {[%emt 00:01:36]} a4 {[%clk 00:04:15]} {[%emt
00:00:16]} 25. f5 {[%clk 00:05:28]} {[%emt 00:00:12]} exf5 {[%clk 00:03:53]}
{[%emt 00:00:28]} 26. exf5 {[%clk 00:05:32]} {[%emt 00:00:01]} Qd6 {[%clk
00:03:20]} {[%emt 00:00:38]} 27. Qxd6 {[%clk 00:05:20]} {[%emt 00:00:17]} Nxd6
{[%clk 00:03:24]} 28. fxg6 {[%clk 00:05:04]} {[%emt 00:00:21]} hxg6 {[%clk
00:03:29]} 29. Be3 {[%clk 00:04:49]} {[%emt 00:00:19]} Nc4 {[%clk 00:03:05]}
{[%emt 00:00:29]} 30. Bxc5 {[%clk 00:04:41]} {[%emt 00:00:14]} Nd5 {[%clk
00:02:34]} {[%emt 00:00:36]} 31. Nd4 {[%clk 00:03:29]} {[%emt 00:01:16]} Bxd4+
{[%clk 00:02:37]} {[%emt 00:00:02]} 32. cxd4 {[%clk 00:03:00]} {[%emt
00:00:33]} Nxb2 {[%clk 00:02:35]} {[%emt 00:00:08]} 33. Ne4 {[%clk 00:02:54]}
{[%emt 00:00:11]} Nc4 {[%clk 00:02:29]} {[%emt 00:00:10]} 34. Nd6 {[%emt
00:00:19]} Nxd6 {[%clk 00:02:24]} {[%emt 00:00:09]} 35. Bxd6 {[%clk 00:02:44]}
{[%emt 00:00:03]} b4 {[%clk 00:02:02]} {[%emt 00:00:28]} 36. Bxb4 {[%clk
00:00:37]} {[%emt 00:02:11]} Nxb4 {[%clk 00:02:05]} {[%emt 00:00:02]} 0-1

[Event "Rapid Tournament (RAP)"]
[Site "Biel, Switzerland"]
[Date "2026.07.12"]
[Round "1.11"]
[White "Arjun, Kalyan"]
[Black "Koehler, Noe"]
[Result "1-0"]
[TimeControl "15 + 5"]
[WhiteTitle "-"]
[BlackTitle "-"]
[WhiteFideId "35018701"]
[BlackFideId "1362488"]
[WhiteElo "2390"]
[BlackElo "1814"]

1. e4 {[%clk 00:15:05]} {[%emt 00:00:02]} c5 {[%clk 00:15:05]} {[%emt
00:00:04]} 2. Nf3 {[%clk 00:15:05]} {[%emt 00:00:03]} e6 {[%clk 00:15:05]}
{[%emt 00:00:01]} 3. d4 {[%clk 00:15:05]} {[%emt 00:00:03]} cxd4 {[%clk
00:15:05]} {[%emt 00:00:02]} 4. Nxd4 {[%clk 00:15:05]} {[%emt 00:00:02]} a6
{[%clk 00:15:05]} {[%emt 00:00:02]} 5. Bd3 {[%clk 00:15:05]} {[%emt 00:00:05]}
Qc7 {[%clk 00:15:05]} {[%emt 00:00:03]} 6. O-O {[%clk 00:15:05]} {[%emt
00:00:06]} Nf6 {[%clk 00:15:05]} {[%emt 00:00:04]} 7. Qe2 {[%clk 00:15:05]}
{[%emt 00:00:03]} Nc6 {[%clk 00:14:58]} {[%emt 00:00:13]} 8. Nxc6 {[%clk
00:14:58]} {[%emt 00:00:12]} dxc6 {[%clk 00:14:54]} {[%emt 00:00:09]} 9. e5
{[%clk 00:13:51]} {[%emt 00:01:11]} Nd5 {[%clk 00:14:24]} {[%emt 00:00:36]} 10.
c4 {[%clk 00:12:40]} {[%emt 00:01:16]} Nb4 {[%clk 00:13:15]} {[%emt 00:01:14]}
11. Bf4 {[%clk 00:12:35]} {[%emt 00:00:09]} Nxd3 {[%clk 00:12:35]} {[%emt
00:00:46]} 12. Qxd3 {[%clk 00:12:35]} {[%emt 00:00:02]} Be7 {[%clk 00:12:18]}
{[%emt 00:00:22]} 13. Nc3 {[%clk 00:11:43]} {[%emt 00:00:57]} O-O {[%clk
00:12:00]} {[%emt 00:00:23]} 14. Ne4 {[%clk 00:11:32]} {[%emt 00:00:16]} c5
{[%clk 00:10:07]} {[%emt 00:01:59]} 15. Qg3 {[%clk 00:09:42]} {[%emt 00:01:54]}
Rd8 {[%clk 00:09:04]} {[%emt 00:01:08]} 16. Rad1 {[%clk 00:06:56]} {[%emt
00:02:52]} b6 {[%clk 00:07:50]} {[%emt 00:01:19]} 17. Nf6+ {[%clk 00:06:20]}
{[%emt 00:00:40]} Kh8 {[%clk 00:07:08]} {[%emt 00:00:47]} 18. Qh4 {[%emt
00:03:04]} 1-0

[Event "Rapid Tournament (RAP)"]
[Site "Biel, Switzerland"]
[Date "2026.07.12"]
[Round "1.12"]
[White "Groux, Mathias"]
[Black "Gloeckler, Christian"]
[Result "0-1"]
[TimeControl "15 + 5"]
[WhiteTitle "-"]
[BlackTitle "-"]
[WhiteFideId "1360752"]
[BlackFideId "34608966"]
[WhiteElo "1813"]
[BlackElo "2332"]

1. e4 {[%clk 00:15:03]} {[%emt 00:00:06]} c5 {[%clk 00:15:09]} {[%emt
00:00:02]} 2. c3 {[%clk 00:14:21]} {[%emt 00:00:47]} e5 {[%clk 00:14:50]}
{[%emt 00:00:23]} 3. Nf3 {[%clk 00:14:16]} {[%emt 00:00:10]} Nc6 {[%clk
00:14:50]} {[%emt 00:00:05]} 4. d4 {[%clk 00:14:16]} {[%emt 00:00:05]} cxd4
{[%clk 00:14:22]} {[%emt 00:00:34]} 5. cxd4 {[%clk 00:14:19]} {[%emt 00:00:01]}
exd4 {[%clk 00:14:19]} {[%emt 00:00:08]} 6. Nxd4 {[%clk 00:14:21]} {[%emt
00:00:03]} Nf6 {[%clk 00:14:13]} {[%emt 00:00:11]} 7. Nc3 {[%clk 00:14:18]}
{[%emt 00:00:08]} Bb4 {[%clk 00:14:10]} {[%emt 00:00:08]} 8. Nxc6 {[%clk
00:14:13]} {[%emt 00:00:09]} dxc6 {[%clk 00:14:00]} {[%emt 00:00:17]} 9. Qxd8+
{[%clk 00:13:21]} {[%emt 00:00:55]} Kxd8 {[%clk 00:14:03]} {[%emt 00:00:03]} 10.
Bg5 {[%emt 00:01:22]} Re8 {[%clk 00:12:58]} 11. O-O-O+ {[%clk 00:12:38]} {[%emt
00:00:39]} Bd7 {[%clk 00:12:22]} {[%emt 00:00:44]} 12. Bxf6+ {[%clk 00:11:57]}
{[%emt 00:00:45]} gxf6 {[%clk 00:12:24]} {[%emt 00:00:03]} 13. Bc4 {[%clk
00:11:35]} {[%emt 00:00:26]} Re7 {[%clk 00:12:16]} {[%emt 00:00:14]} 14. Rd3
{[%clk 00:10:43]} {[%emt 00:00:57]} Kc7 {[%clk 00:11:34]} {[%emt 00:00:47]} 15.
Rhd1 {[%clk 00:10:27]} {[%emt 00:00:20]} a5 {[%clk 00:10:23]} {[%emt 00:01:17]}
16. Ne2 {[%clk 00:08:55]} {[%emt 00:01:37]} b5 {[%clk 00:09:36]} {[%emt
00:00:54]} 17. Bb3 {[%clk 00:08:26]} {[%emt 00:00:33]} a4 {[%clk 00:09:31]}
{[%emt 00:00:09]} 18. Bc2 {[%clk 00:08:21]} {[%emt 00:00:10]} Be6 {[%clk
00:09:12]} {[%emt 00:00:24]} 19. Kb1 {[%clk 00:07:29]} {[%emt 00:00:57]} Bc4
{[%clk 00:08:55]} {[%emt 00:00:22]} 20. Re3 {[%clk 00:07:13]} {[%emt 00:00:20]}
Bc5 {[%clk 00:08:57]} {[%emt 00:00:04]} 21. Nd4 {[%clk 00:06:55]} {[%emt
00:00:23]} Rd7 {[%clk 00:08:59]} {[%emt 00:00:03]} 22. Nxb5+ {[%clk 00:05:59]}
{[%emt 00:01:01]} cxb5 {[%clk 00:08:58]} {[%emt 00:00:06]} 23. Rf3 {[%clk
00:05:53]} {[%emt 00:00:12]} Rxd1+ {[%clk 00:08:50]} {[%emt 00:00:13]} 24. Bxd1
{[%clk 00:05:53]} {[%emt 00:00:03]} Bd4 {[%clk 00:08:49]} {[%emt 00:00:08]} 25.
Rh3 {[%clk 00:05:27]} {[%emt 00:00:30]} Re8 {[%clk 00:08:44]} {[%emt 00:00:11]}
26. Rxh7 {[%clk 00:04:50]} {[%emt 00:00:41]} Rxe4 {[%clk 00:08:46]} {[%emt
00:00:03]} 27. Kc2 {[%clk 00:04:32]} {[%emt 00:00:23]} Bxa2 {[%clk 00:08:29]}
{[%emt 00:00:22]} 28. Bh5 {[%clk 00:03:55]} {[%emt 00:00:42]} Re7 {[%clk
00:08:26]} {[%emt 00:00:08]} 29. Kd3 {[%clk 00:03:56]} {[%emt 00:00:05]} Bb1+
{[%clk 00:08:29]} {[%emt 00:00:02]} 0-1

[Event "Rapid Tournament (RAP)"]
[Site "Biel, Switzerland"]
[Date "2026.07.12"]
[Round "1.13"]
[White "Savitha, Shri B"]
[Black "Fortier, Nicolas"]
[Result "1-0"]
[TimeControl "15 + 5"]
[WhiteTitle "-"]
[BlackTitle "-"]
[WhiteFideId "35061887"]
[BlackFideId "1308750"]
[WhiteElo "2317"]
[BlackElo "1810"]

1. e4 {[%clk 00:15:08]} {[%emt 00:00:01]} e5 {[%clk 00:15:08]} {[%emt
00:00:03]} 2. Nf3 {[%clk 00:15:12]} {[%emt 00:00:01]} Nc6 {[%clk 00:15:10]}
{[%emt 00:00:02]} 3. Bb5 {[%clk 00:15:15]} {[%emt 00:00:02]} a6 {[%clk
00:15:13]} {[%emt 00:00:02]} 4. Ba4 {[%clk 00:15:19]} {[%emt 00:00:01]} Nf6
{[%clk 00:15:15]} {[%emt 00:00:02]} 5. Nc3 {[%clk 00:15:23]} {[%emt 00:00:01]}
b5 {[%clk 00:14:58]} {[%emt 00:00:22]} 6. Bb3 {[%clk 00:15:27]} {[%emt
00:00:01]} Be7 {[%clk 00:14:53]} {[%emt 00:00:10]} 7. d3 {[%clk 00:15:15]}
{[%emt 00:00:18]} O-O {[%clk 00:14:51]} {[%emt 00:00:06]} 8. O-O {[%clk
00:14:53]} {[%emt 00:00:27]} d6 {[%clk 00:14:41]} {[%emt 00:00:16]} 9. a4
{[%clk 00:14:55]} {[%emt 00:00:03]} b4 {[%clk 00:14:18]} {[%emt 00:00:28]} 10.
Nd5 {[%clk 00:14:59]} Nxd5 {[%clk 00:12:58]} {[%emt 00:01:25]} 11. Bxd5 {[%clk
00:15:02]} {[%emt 00:00:02]} Bd7 {[%clk 00:12:43]} {[%emt 00:00:20]} 12. d4
{[%clk 00:14:24]} {[%emt 00:00:43]} Rb8 {[%clk 00:12:03]} {[%emt 00:00:45]} 13.
dxe5 {[%clk 00:14:23]} {[%emt 00:00:05]} Nxe5 {[%clk 00:11:51]} {[%emt
00:00:17]} 14. Nxe5 {[%clk 00:14:27]} {[%emt 00:00:02]} dxe5 {[%clk 00:11:54]}
{[%emt 00:00:02]} 15. Be3 {[%clk 00:14:30]} c6 {[%clk 00:10:54]} {[%emt
00:01:06]} 16. Bc4 {[%clk 00:14:26]} {[%emt 00:00:08]} a5 {[%clk 00:10:49]}
{[%emt 00:00:11]} 17. Qh5 {[%clk 00:13:17]} {[%emt 00:01:13]} Qc7 {[%clk
00:09:37]} {[%emt 00:01:17]} 18. Rad1 {[%clk 00:12:52]} {[%emt 00:00:30]} Rbd8
{[%clk 00:08:28]} {[%emt 00:01:15]} 19. Kh1 {[%clk 00:11:30]} {[%emt 00:01:27]}
Kh8 {[%clk 00:07:55]} {[%emt 00:00:38]} 20. Bxf7 {[%clk 00:11:07]} {[%emt
00:00:28]} Be8 {[%clk 00:07:16]} {[%emt 00:00:43]} 21. Rxd8 {[%clk 00:10:51]}
{[%emt 00:00:21]} Bxd8 {[%clk 00:07:06]} {[%emt 00:00:15]} 22. Bxe8 {[%clk
00:10:52]} {[%emt 00:00:04]} 1-0

[Event "Rapid Tournament (RAP)"]
[Site "Biel, Switzerland"]
[Date "2026.07.12"]
[Round "1.14"]
[White "Papageorgiou Martinella, Ilios"]
[Black "Maier, Christian"]
[Result "0-1"]
[TimeControl "15 + 5"]
[WhiteTitle "-"]
[BlackTitle "-"]
[WhiteFideId "1368494"]
[BlackFideId "4601955"]
[WhiteElo "1809"]
[BlackElo "2314"]

1. d4 {[%clk 00:15:07]} {[%emt 00:00:02]} Nf6 {[%clk 00:15:07]} {[%emt
00:00:03]} 2. c4 {[%clk 00:15:10]} {[%emt 00:00:02]} e6 {[%clk 00:15:11]}
{[%emt 00:00:03]} 3. Nc3 {[%clk 00:15:12]} {[%emt 00:00:02]} Bb4 {[%clk
00:15:13]} {[%emt 00:00:02]} 4. f3 {[%clk 00:15:16]} {[%emt 00:00:02]} d5
{[%clk 00:15:12]} {[%emt 00:00:07]} 5. a3 {[%clk 00:15:19]} Be7 {[%clk
00:14:55]} {[%emt 00:00:23]} 6. e4 {[%clk 00:15:22]} {[%emt 00:00:02]} dxc4
{[%clk 00:13:21]} {[%emt 00:01:39]} 7. Bxc4 {[%clk 00:15:25]} {[%emt 00:00:02]}
c5 {[%clk 00:13:21]} {[%emt 00:00:05]} 8. Nge2 {[%clk 00:13:58]} {[%emt
00:01:31]} Nc6 {[%clk 00:13:13]} {[%emt 00:00:15]} 9. d5 {[%clk 00:13:39]}
{[%emt 00:00:22]} exd5 {[%clk 00:13:07]} {[%emt 00:00:12]} 10. Nxd5 {[%clk
00:13:36]} {[%emt 00:00:07]} Nxd5 {[%clk 00:13:00]} {[%emt 00:00:13]} 11. Bxd5
{[%clk 00:13:27]} {[%emt 00:00:13]} O-O {[%clk 00:12:47]} {[%emt 00:00:19]} 12.
O-O {[%clk 00:13:23]} {[%emt 00:00:09]} Qb6 {[%clk 00:12:34]} {[%emt 00:00:18]}
13. Qb3 {[%clk 00:12:45]} {[%emt 00:00:43]} Qxb3 {[%clk 00:12:06]} {[%emt
00:00:33]} 14. Bxb3 {[%clk 00:12:48]} {[%emt 00:00:02]} Bf6 {[%clk 00:12:08]}
{[%emt 00:00:03]} 15. Bd5 {[%clk 00:11:13]} {[%emt 00:01:39]} Ne7 {[%clk
00:11:23]} {[%emt 00:00:50]} 16. Nc3 {[%clk 00:10:45]} {[%emt 00:00:34]} Bd4+
{[%clk 00:10:44]} {[%emt 00:00:44]} 17. Kh1 {[%clk 00:10:47]} {[%emt 00:00:02]}
Nxd5 {[%clk 00:10:20]} {[%emt 00:00:30]} 18. Nxd5 {[%clk 00:10:43]} {[%emt
00:00:08]} Be6 {[%clk 00:10:16]} {[%emt 00:00:09]} 19. Nc7 {[%clk 00:10:24]}
{[%emt 00:00:24]} Rac8 {[%clk 00:10:20]} {[%emt 00:00:01]} 20. Nxe6 {[%clk
00:10:28]} {[%emt 00:00:02]} fxe6 {[%clk 00:10:24]} {[%emt 00:00:01]} 21. Rb1
{[%clk 00:10:07]} {[%emt 00:00:26]} e5 {[%clk 00:10:23]} {[%emt 00:00:06]} 22.
Bd2 {[%clk 00:09:47]} {[%emt 00:00:25]} b5 {[%clk 00:10:06]} {[%emt 00:00:22]}
23. Bc3 {[%clk 00:09:30]} {[%emt 00:00:21]} Rfd8 {[%clk 00:10:07]} {[%emt
00:00:04]} 24. Rbd1 {[%clk 00:09:18]} {[%emt 00:00:17]} Kf7 {[%clk 00:09:21]}
{[%emt 00:00:52]} 25. f4 {[%clk 00:08:39]} {[%emt 00:00:43]} Bxc3 {[%clk
00:09:15]} {[%emt 00:00:11]} 26. bxc3 {[%clk 00:08:33]} {[%emt 00:00:12]} exf4
{[%clk 00:09:18]} {[%emt 00:00:02]} 27. Rf2 {[%emt 00:00:04]} f3 28. Rxf3+
{[%clk 00:08:33]} Ke6 {[%clk 00:09:22]} {[%emt 00:00:02]} 29. Rf4 {[%clk
00:07:34]} Rc7 {[%clk 00:09:26]} {[%emt 00:01:05]} 30. Rdf1 {[%clk 00:07:28]}
Rd3 {[%clk 00:09:30]} {[%emt 00:00:12]} 31. g3 {[%clk 00:07:18]} Rcd7 {[%clk
00:09:33]} {[%emt 00:00:18]} 32. R1f3 {[%clk 00:07:16]} Rxf3 {[%clk 00:09:36]}
{[%emt 00:00:08]} 33. Kg2 {[%clk 00:07:12]} Rd6 34. Rxf3 Rd2+ {[%clk 00:09:40]}
35. Rf2 {[%clk 00:07:12]} {[%emt 00:00:04]} Rxf2+ {[%clk 00:08:54]} {[%emt
00:00:51]} 36. Kxf2 {[%clk 00:07:16]} {[%emt 00:00:02]} Ke5 {[%clk 00:08:58]}
37. Ke3 {[%clk 00:07:19]} {[%emt 00:00:02]} a5 {[%clk 00:09:02]} {[%emt
00:00:01]} 38. Kd3 {[%clk 00:07:16]} {[%emt 00:00:08]} b4 {[%clk 00:08:59]}
{[%emt 00:00:08]} 39. cxb4 {[%clk 00:07:15]} {[%emt 00:00:05]} cxb4 {[%clk
00:09:01]} {[%emt 00:00:04]} 40. axb4 {[%clk 00:07:19]} {[%emt 00:00:01]} axb4
{[%clk 00:09:05]} 41. Kc4 {[%clk 00:07:20]} {[%emt 00:00:04]} Kxe4 {[%clk
00:09:09]} 42. Kxb4 {[%clk 00:07:24]} {[%emt 00:00:01]} Kf3 {[%clk 00:09:13]}
43. Kc5 {[%clk 00:07:28]} Kg2 {[%clk 00:09:16]} {[%emt 00:00:02]} 44. g4 {[%clk
00:07:31]} {[%emt 00:00:01]} Kxh2 {[%clk 00:09:16]} {[%emt 00:00:05]} 45. Kd6
{[%clk 00:07:34]} {[%emt 00:00:02]} Kg3 {[%clk 00:09:20]} {[%emt 00:00:01]} 46.
g5 {[%clk 00:07:38]} {[%emt 00:00:02]} Kg4 {[%clk 00:09:24]} 47. Ke6 {[%clk
00:07:35]} {[%emt 00:00:07]} Kxg5 {[%clk 00:09:28]} {[%emt 00:00:02]} 48. Kf7
{[%clk 00:07:39]} h5 {[%clk 00:09:32]} {[%emt 00:00:01]} 0-1